bitfinex/quotes_ETHUSD_20250529
["timestamp","ask_amount","ask_price","bid_price","bid_amount"]
[1748552007677,1.65804,2642.7,2642.6,3.78405236]
[1748552008915,1.65804,2642.7,2642.6,11.78405236]
[1748552010617,6.35804,2642.7,2642.6,11.78405236]
[1748552014289,9.67504,2642.7,2642.6,11.78405236]
[1748552014495,10.22504,2642.7,2642.6,11.78405236]
[1748552017932,10.92504,2642.7,2642.6,11.78405236]
[1748552018105,10.22504,2642.7,2642.6,11.78405236]
[1748552020898,6.35804,2642.7,2642.6,11.78405236]
[1748552021398,5.80804,2642.7,2642.6,11.78405236]
[1748552021632,8.567,2642.7,2642.6,11.78405236]
[1748552022165,9.117,2642.7,2642.6,11.78405236]
[1748552023938,9.117,2642.7,2642.6,8.0]
[1748552024143,9.117,2642.7,2642.6,3.78405236]
[1748552026170,9.117,2642.7,2642.6,11.78405236]
[1748552026473,10.1293,2642.7,2642.6,11.78405236]
[1748552029173,10.11984034,2642.7,2642.6,11.78405236]
[1748552030887,6.25284034,2642.7,2642.6,11.78405236]
[1748552031068,10.11884034,2642.7,2642.6,11.78405236]
[1748552032576,6.70784034,2642.7,2642.6,12.72405236]
[1748552032768,9.56154034,2642.7,2642.6,12.72405236]
[1748552033066,10.11154034,2642.7,2642.6,12.72405236]
[1748552035092,10.11154034,2642.7,2642.6,11.78405236]
[1748552037907,6.24554034,2642.7,2642.6,11.78405236]
[1748552038208,10.11154034,2642.7,2642.6,11.78405236]
[1748552039411,10.11054034,2642.7,2642.6,11.78405236]
[1748552041270,11.12159437,2642.7,2642.6,11.78405236]
[1748552052613,11.12159437,2642.7,2642.6,3.78405236]
[1748552053008,11.12159437,2642.7,2642.6,11.78405236]
[1748552060652,11.82159437,2642.7,2642.6,11.78405236]
[1748552062720,11.81959437,2642.7,2642.6,11.78405236]
[1748552063060,11.11959437,2642.7,2642.6,11.78405236]
[1748552065353,11.81959437,2642.7,2642.6,11.78405236]
[1748552068666,7.95559437,2642.7,2642.6,12.78075236]
[1748552068865,10.80854034,2642.7,2642.6,12.78075236]
[1748552069062,6.94454034,2642.7,2642.6,12.78075236]
[1748552069269,10.80854034,2642.7,2642.6,12.78075236]
[1748552069564,10.10854034,2642.7,2642.6,12.78075236]
[1748552071062,6.24454034,2642.7,2642.6,12.78075236]
[1748552071262,10.10854034,2642.7,2642.6,12.78075236]
[1748552074074,8.17,2643.0,2642.7,8.0]
[1748552074254,9.174,2643.0,2642.9,11.78372242]
[1748552074457,13.038,2643.0,2642.9,11.78372242]
[1748552074655,13.588,2643.0,2642.9,11.78372242]
[1748552078362,13.587,2643.0,2642.9,11.78372242]
[1748552079366,14.9457,2643.0,2642.9,11.78372242]
[1748552082598,11.0827,2643.0,2642.9,11.78372242]
[1748552082735,13.587,2643.0,2642.9,11.78372242]
[1748552083174,5.417,2643.0,2642.9,11.78372242]
[1748552084479,10.10754034,2643.0,2642.9,11.78372242]
[1748552086054,10.10654034,2643.0,2642.9,11.78372242]
[1748552090167,5.69454034,2643.0,2642.9,11.78372242]
[1748552090369,5.69454034,2643.0,2642.9,14.6536821]
[1748552090705,1.004,2643.0,2642.9,14.6536821]
[1748552091206,4.866,2643.0,2642.9,14.6536821]
[1748552096428,4.866,2643.0,2642.9,12.71852242]
[1748552099335,5.416,2643.0,2642.9,12.71852242]
[1748552099539,5.416,2643.0,2642.9,11.78372242]
[1748552100432,0.55,2642.9,2642.5,0.00037784]
[1748552100638,5.47665403,2642.8,2642.7,3.78400877]
[1748552100833,10.16719437,2642.8,2642.7,3.78400877]
[1748552101033,10.16719437,2642.8,2642.7,11.78400877]
[1748552104007,6.30619437,2642.8,2642.7,11.78400877]
[1748552104353,4.69054034,2642.8,2642.7,11.78400877]
[1748552104561,4.69054034,2643.5,2643.4,3.78300673]
[1748552104761,9.55454034,2643.5,2643.4,11.78300673]
[1748552105422,10.10454034,2643.5,2643.4,11.78300673]
[1748552105623,11.93189437,2643.5,2643.4,11.78300673]
[1748552106860,8.07089437,2643.5,2643.4,11.78300673]
[1748552107085,11.93189437,2643.5,2643.4,11.78300673]
[1748552107254,11.38089437,2643.5,2643.4,11.78300673]
[1748552107439,7.51989437,2643.5,2643.4,11.78300673]
[1748552107630,4.863,2643.5,2643.4,11.78300673]
[1748552110260,4.863,2643.5,2643.4,3.42994654]
[1748552110439,5.413,2643.5,2643.4,3.78300673]
[1748552111065,10.10354034,2643.5,2643.4,3.78300673]
[1748552111636,11.11389437,2643.5,2643.4,3.78300673]
[1748552112351,11.11389437,2643.5,2643.4,5.64616943]
[1748552112550,11.11389437,2643.5,2643.4,9.42917616]
[1748552113265,7.25289437,2643.5,2643.4,9.42917616]
[1748552113470,11.11289437,2643.5,2643.4,9.42917616]
[1748552113673,7.25289437,2643.5,2643.4,9.42917616]
[1748552113969,11.11289437,2643.5,2643.4,9.42917616]
[1748552114184,6.70289437,2643.5,2643.4,9.42917616]
[1748552114415,5.69254034,2643.5,2643.4,10.39437616]
[1748552114854,9.55254034,2643.5,2643.4,10.39437616]
[1748552117176,4.862,2643.5,2643.4,10.39437616]
[1748552120477,1.002,2643.5,2643.4,10.39437616]
[1748552120637,4.862,2643.5,2643.4,10.39437616]
[1748552123043,0.55,2644.0,2643.9,11.78229131]
[1748552123273,10.89239437,2644.0,2643.9,11.78229131]
[1748552123575,9.55154034,2644.0,2643.9,11.78229131]
[1748552123953,5.69254034,2644.0,2643.9,11.78229131]
[1748552124284,9.55154034,2644.0,2643.9,11.78229131]
[1748552130476,9.55154034,2644.0,2643.9,4.29050367]
[1748552130679,9.55154034,2644.0,2643.9,8.07279498]
[1748552131375,9.55054034,2644.0,2643.9,8.07279498]
[1748552132492,10.50559437,2644.0,2643.9,8.07279498]
[1748552135767,0.55,2643.9,2643.5,3.78285856]
[1748552136051,0.55,2643.7,2643.6,3.78272053]
[1748552136212,4.408,2643.7,2643.6,3.78272053]
[1748552136416,5.2468,2643.7,2643.6,3.78272053]
[1748552136606,5.2468,2643.7,2643.1,8.0]
[1748552136607,9.2268,2643.7,2643.5,3.78277037]
[1748552136807,9.2268,2643.7,2643.6,3.78272053]
[1748552137419,2.3898,2643.7,2643.6,3.78272053]
[1748552137608,5.409,2643.7,2643.6,3.78272053]
[1748552139150,6.19559437,2644.0,2643.9,3.78229131]
[1748552139355,10.09954034,2644.0,2643.9,3.78229131]
[1748552140105,9.54954034,2644.0,2643.9,3.78229131]
[1748552140305,6.24154034,2644.0,2643.9,3.78229131]
[1748552140510,5.69154034,2644.0,2643.9,3.78229131]
[1748552140713,9.54954034,2644.0,2643.9,3.78229131]
[1748552140911,11.05449437,2644.0,2643.9,3.78229131]
[1748552141134,7.19649437,2644.0,2643.9,11.78229131]
[1748552141337,11.05449437,2644.0,2643.9,11.78229131]
[1748552141824,7.19649437,2644.0,2643.9,11.78229131]
[1748552142045,11.05449437,2644.0,2643.9,11.78229131]
[1748552142943,11.11909437,2644.0,2643.9,11.78229131]
[1748552143654,6.42855403,2644.0,2643.9,11.78229131]
[1748552147515,2.57055403,2644.0,2643.9,11.78229131]
[1748552147754,5.4736,2644.0,2643.9,11.78229131]
[1748552149156,1.6156,2644.0,2643.9,11.78229131]
[1748552149358,5.409,2644.0,2643.9,11.78229131]
[1748552149515,10.09954034,2644.0,2643.9,11.78229131]
[1748552153418,5.69154034,2644.0,2643.9,11.78229131]
[1748552153717,9.54954034,2644.0,2643.9,11.78229131]
[1748552153918,9.54954034,2644.0,2643.9,12.82089131]
[1748552153919,5.69154034,2644.0,2643.9,12.82089131]
[1748552154256,4.859,2644.0,2643.9,14.85947938]
[1748552155663,4.859,2644.0,2643.9,12.82089131]
[1748552162324,8.166,2644.3,2644.2,3.78186218]
[1748552162524,9.167,2644.3,2644.2,12.76576218]
[1748552162784,13.025,2644.3,2644.2,12.76576218]
[1748552162926,9.167,2644.3,2644.2,12.76576218]
[1748552163125,13.025,2644.3,2644.2,12.76576218]
[1748552165720,9.167,2644.3,2644.2,14.42053624]
[1748552166138,13.024,2644.3,2644.2,14.42053624]
[1748552166954,4.858,2644.3,2644.2,14.42053624]
[1748552167556,1.001,2644.3,2644.2,14.42053624]
[1748552167762,4.858,2644.3,2644.2,14.42053624]
[1748552169884,4.69054034,2644.7,2644.6,3.78129017]
[1748552170057,5.69054034,2644.7,2644.6,3.78129017]
[1748552170257,9.54754034,2644.7,2644.6,3.78129017]
[1748552171287,10.56689437,2644.7,2644.6,3.78129017]
[1748552173501,9.54754034,2644.7,2644.6,3.78129017]
[1748552176175,5.69054034,2644.7,2644.6,3.78129017]
[1748552176373,9.54754034,2644.7,2644.6,11.78129017]
[1748552178393,5.69054034,2644.7,2644.6,11.78129017]
[1748552178599,9.54654034,2644.7,2644.6,11.78129017]
[1748552179490,1.0,2644.7,2644.6,14.28835972]
[1748552179694,4.856,2644.7,2644.6,14.28835972]
[1748552179897,4.856,2644.7,2644.6,11.78129017]
[1748552180195,4.69054034,2645.2,2644.9,3.78086128]
[1748552180401,4.69054034,2645.2,2645.1,3.7805754]
[1748552180623,9.54654034,2645.2,2645.1,3.7805754]
[1748552182508,5.69054034,2645.2,2645.1,3.7805754]
[1748552182724,10.93380437,2645.2,2645.1,3.7805754]
[1748552183125,11.48380437,2645.2,2645.1,3.7805754]
[1748552183442,0.0181,2645.0,2643.8,3.78241166]
[1748552183659,0.0181,2644.8,2644.7,3.7811472]
[1748552183825,5.4301,2644.8,2644.7,3.7811472]
[1748552184160,0.0181,2644.6,2643.7,9.0422]
[1748552184299,0.0181,2644.6,2644.5,3.78136078]
[1748552184500,3.8801,2644.6,2644.5,3.78136078]
[1748552184725,4.42311,2644.6,2644.5,3.78136078]
[1748552187680,0.0181,2644.4,2643.5,0.9809]
[1748552187827,0.0181,2644.4,2644.3,3.78171916]
[1748552188147,4.4281,2644.4,2644.3,3.78171916]
[1748552188362,5.39426503,2644.4,2644.3,3.78171916]
[1748552190262,6.39426503,2644.4,2644.3,3.78171916]
[1748552191034,11.08480537,2644.4,2644.3,3.78171916]
[1748552192592,11.08280537,2644.4,2644.3,3.78171916]
[1748552197221,11.08280537,2644.4,2643.8,8.0]
[1748552197222,0.55,2644.3,2644.2,3.78182454]
[1748552197393,1.65828054,2644.3,2644.2,3.78182454]
[1748552200621,5.51528054,2644.3,2644.2,3.78182454]
[1748552203038,10.20582088,2644.3,2644.2,3.78182454]
[1748552206820,18.37082088,2644.3,2644.2,3.78182454]
[1748552209335,22.34882088,2644.3,2643.2,0.9536]
[1748552209533,0.55,2644.0,2643.8,3.78237343]
[1748552209784,9.09754034,2643.9,2643.8,3.78237343]
[1748552213071,5.24054034,2643.9,2643.8,3.78237343]
[1748552213391,9.62159437,2643.9,2643.8,3.78237343]
[1748552213794,5.76459437,2643.9,2643.8,3.78237343]
[1748552213992,10.62159437,2643.9,2643.8,3.78237343]
[1748552215606,5.76459437,2643.9,2643.8,3.78237343]
[1748552215906,10.62159437,2643.9,2643.8,3.78237343]
[1748552217075,10.62259437,2643.9,2643.8,3.78237343]
[1748552219696,6.76459437,2643.9,2643.8,3.78237343]
[1748552220002,10.62259437,2643.9,2643.8,3.78237343]
[1748552220399,10.62259437,2643.9,2643.7,3.78256587]
[1748552220400,0.55,2643.8,2643.7,3.78249497]
[1748552220603,2.57530481,2643.8,2643.6,3.78267847]
[1748552220759,2.57530481,2643.8,2643.7,3.78257744]
[1748552220965,5.31604537,2643.8,2643.7,3.78257744]
[1748552221875,1.45804537,2643.8,2643.7,3.78257744]
[1748552222080,6.31604537,2643.8,2643.7,3.78257744]
[1748552222675,0.55,2643.7,2643.5,3.78284633]
[1748552222970,5.09460454,2643.6,2643.5,3.78284633]
[1748552223306,0.55,2643.5,2643.4,3.78292195]
[1748552224467,0.55,2643.5,2643.3,8.0]
[1748552224468,0.55,2643.5,2643.3,3.7830799]
[1748552224705,4.54460454,2643.6,2643.3,3.7830799]
[1748552224706,4.91746045,2643.4,2643.3,3.7830799]
[1748552224925,5.82550582,2643.4,2643.3,3.7830799]
[1748552227295,0.55,2643.3,2642.9,10.66343572]
[1748552227621,0.55,2643.1,2643.0,3.78357926]
[1748552227819,2.89884537,2643.1,2643.0,3.78357926]
[1748552228399,1.89884537,2643.1,2643.0,3.78357926]
[1748552228596,6.31604537,2643.1,2643.0,3.78357926]
[1748552229534,6.31604537,2643.1,2643.0,11.78357926]
[1748552232399,14.48404537,2643.1,2643.0,11.78357926]
[1748552242439,14.48404537,2643.1,2643.0,5.63601389]
[1748552242642,14.48404537,2643.1,2643.0,9.41959315]
[1748552242870,15.93244991,2643.1,2643.0,9.41959315]
[1748552243951,12.07444991,2643.1,2643.0,9.41959315]
[1748552244145,15.93244991,2643.1,2643.0,9.41959315]
[1748552244541,16.63244991,2643.1,2643.0,9.41959315]
[1748552244884,15.93244991,2643.1,2643.0,9.41959315]
[1748552246546,15.93244991,2643.1,2642.9,3.7837045]
[1748552247273,14.48404537,2643.1,2643.0,3.78357926]
[1748552248546,14.48404537,2643.1,2643.0,11.78357926]
[1748552250486,10.62604537,2643.1,2643.0,11.78357926]
[1748552250688,14.48404537,2643.1,2643.0,11.78357926]
[1748552258332,10.07604537,2643.1,2643.0,12.78447926]
[1748552258535,8.168,2643.1,2643.0,13.20352537]
[1748552258815,13.025,2643.1,2643.0,13.20352537]
[1748552259117,12.014,2643.1,2643.0,13.20352537]
[1748552262549,8.157,2643.1,2643.0,13.20352537]
[1748552262836,12.014,2643.1,2643.0,13.20352537]
[1748552263501,7.157,2643.1,2643.0,13.20352537]
[1748552263988,12.014,2643.1,2643.0,13.20352537]
[1748552264313,7.157,2643.1,2643.0,13.20352537]
[1748552264481,12.014,2643.1,2643.0,13.20352537]
[1748552264676,7.157,2643.1,2643.0,13.20352537]
[1748552264873,12.014,2643.1,2643.0,13.20352537]
[1748552265290,12.014,2643.1,2643.0,12.78447926]
[1748552271202,12.013,2643.1,2643.0,12.78447926]
[1748552272394,12.563,2643.1,2643.0,11.78357926]
[1748552272651,12.563,2643.1,2643.0,3.78357926]
[1748552272929,12.563,2643.1,2643.0,11.78357926]
[1748552273131,13.91164,2643.1,2643.0,11.78357926]
[1748552273921,14.81968537,2643.1,2643.0,11.78357926]
[1748552277253,7.66268537,2643.1,2643.0,11.78357926]
[1748552277414,6.31404537,2643.1,2643.0,11.78357926]
[1748552277911,0.90804537,2643.1,2643.0,11.78357926]
[1748552278111,5.76404537,2643.1,2643.0,12.79997926]
[1748552280542,5.76404537,2643.1,2643.0,4.26191063]
[1748552280766,5.76404537,2643.1,2643.0,1.0164]
[1748552281076,5.76404537,2643.1,2643.0,4.79997926]
[1748552282554,5.76404537,2643.1,2643.0,12.79997926]
[1748552284233,0.90804537,2643.1,2643.0,12.79997926]
[1748552284474,5.76404537,2643.1,2643.0,14.45834764]
[1748552285769,5.76404537,2643.1,2643.0,12.79997926]
[1748552288371,0.90804537,2643.1,2643.0,12.79997926]
[1748552288578,5.76404537,2643.1,2643.0,12.79997926]
[1748552295719,6.31404537,2643.1,2643.0,11.78357926]
[1748552295989,7.03811991,2643.1,2643.0,11.78357926]
[1748552297397,3.18211991,2643.1,2643.0,11.78357926]
[1748552297597,6.31304537,2643.1,2643.0,11.78357926]
[1748552300287,0.90804537,2643.1,2643.0,11.78357926]
[1748552300491,1.90704537,2643.1,2643.0,12.80317926]
[1748552300796,5.76204537,2643.1,2643.0,1.0196]
[1748552301158,5.76204537,2643.1,2643.0,4.80317926]
[1748552301816,5.76204537,2643.1,2642.7,3.78391134]
[1748552302020,8.168,2643.4,2643.3,3.78314985]
[1748552302315,13.022,2643.4,2643.3,3.78314985]
[1748552304794,13.022,2643.4,2643.3,11.78314985]
[1748552306119,13.572,2643.4,2643.3,11.78314985]
[1748552306329,14.5219,2643.4,2643.3,11.78314985]
[1748552306503,16.88213537,2643.4,2643.3,11.78314985]
[1748552306700,16.88213537,2643.4,2643.3,3.78314985]
[1748552307012,0.55,2643.3,2643.2,3.78322816]
[1748552307218,0.55,2643.3,2643.0,3.78351148]
[1748552307412,1.4999,2643.1,2643.0,3.78351148]
[1748552307621,2.40794537,2643.1,2643.0,3.78351148]
[1748552309518,7.26194537,2643.1,2643.0,3.78351148]
[1748552315302,6.31204537,2643.1,2643.0,3.78351148]
[1748552315498,1.45804537,2643.1,2643.0,3.78351148]
[1748552315752,1.90704537,2643.1,2643.0,3.78351148]
[1748552315899,5.76204537,2643.1,2643.0,12.77011148]
[1748552316937,1.90704537,2643.1,2643.0,12.77011148]
[1748552317250,5.76204537,2643.1,2643.0,12.77011148]
[1748552318647,9.07604537,2643.4,2643.3,12.72334985]
[1748552318850,13.92904537,2643.4,2643.3,12.72334985]
[1748552319016,10.07504537,2643.4,2643.3,12.72334985]
[1748552319374,13.92904537,2643.4,2643.3,12.72334985]
[1748552320464,10.07504537,2643.4,2643.3,12.72334985]
[1748552320628,13.92904537,2643.4,2643.3,12.72334985]
[1748552323117,13.92904537,2643.4,2643.3,11.78314985]
[1748552323962,13.92904537,2643.4,2643.3,4.14525406]
[1748552324117,13.92904537,2643.4,2643.3,3.78314985]
[1748552325126,15.32194991,2643.4,2643.3,3.78314985]
[1748552325457,15.87194991,2643.4,2643.3,3.78314985]
[1748552325618,10.46894991,2643.4,2643.3,3.78314985]
[1748552325818,13.92804537,2643.4,2643.3,3.78314985]
[1748552330616,10.08694537,2643.4,2643.3,3.78314985]
[1748552330831,10.08694537,2643.4,2643.2,3.78319202]
[1748552330832,14.6059,2643.4,2643.2,3.78319202]
[1748552331046,14.6059,2643.4,2643.3,3.78314985]
[1748552331230,16.06649,2643.4,2643.3,3.78314985]
[1748552331957,1.5431,2643.3,2643.2,3.78317371]
[1748552332330,0.55,2643.1,2643.0,3.78345161]
[1748552332531,5.432,2643.1,2643.0,3.78345161]
[1748552333760,4.429,2643.1,2642.7,3.78400877]
[1748552333962,0.55,2642.9,2642.8,3.78386559]
[1748552334170,4.428,2642.9,2642.8,3.78386559]
[1748552335659,4.427,2642.9,2642.8,3.78386559]
[1748552338931,5.33504537,2642.9,2642.8,3.78386559]
[1748552339450,1.45804537,2642.9,2642.8,3.78386559]
[1748552339656,5.78104537,2642.9,2642.8,3.78386559]
[1748552340464,6.90914991,2642.9,2642.8,3.78386559]
[1748552344039,3.03414991,2642.9,2642.8,3.78386559]
[1748552344373,6.32904537,2642.9,2642.8,3.78386559]
[1748552348746,1.45804537,2642.9,2642.8,3.78386559]
[1748552348941,6.32704537,2642.9,2642.8,3.78386559]
[1748552349345,2.45604537,2642.9,2642.8,3.78386559]
[1748552349661,6.32604537,2642.9,2642.8,3.78386559]
[1748552352884,6.32404537,2642.9,2642.8,3.78386559]
[1748552355297,1.90604537,2642.9,2642.8,3.78386559]
[1748552355493,5.77204537,2642.9,2642.8,3.78386559]
[1748552356875,5.77104537,2642.9,2642.8,3.78386559]
[1748552361877,7.16504991,2642.9,2642.8,3.78386559]
[1748552363934,8.67414991,2642.9,2642.8,3.78386559]
[1748552364135,0.55,2642.8,2642.5,3.78466256]
[1748552364340,3.861,2642.7,2642.6,3.78412288]
[1748552364481,4.76904537,2642.7,2642.6,3.78412288]
[1748552364794,6.18606036,2642.7,2642.6,3.78412288]
[1748552378615,2.32506036,2642.7,2642.6,3.78412288]
[1748552378812,5.31404537,2642.7,2642.6,3.78412288]
[1748552378998,1.45804537,2642.7,2642.6,4.75622288]
[1748552379199,1.91404537,2642.7,2642.6,12.75622288]
[1748552379516,5.77004537,2642.7,2642.6,12.75622288]
[1748552382835,1.91404537,2642.7,2642.6,12.75622288]
[1748552383038,5.76904537,2642.7,2642.6,12.75622288]
[1748552383750,0.90804537,2642.7,2642.6,13.23508248]
[1748552383948,5.76204537,2642.7,2642.6,13.23508248]
[1748552386550,4.854,2642.7,2642.6,13.23508248]
[1748552387635,4.854,2642.7,2642.6,12.75622288]
[1748552393957,4.854,2642.7,2642.6,11.78412288]
[1748552399966,1.45804537,2642.9,2642.8,3.78386559]
[1748552400167,6.31204537,2642.9,2642.8,11.78386559]
[1748552400378,1.90704537,2642.9,2642.8,11.78386559]
[1748552400559,8.169,2643.0,2642.9,12.69432242]
[1748552400760,13.023,2643.0,2642.9,12.69432242]
[1748552402772,13.023,2643.0,2642.9,11.78372242]
[1748552402975,14.5376,2643.0,2642.9,11.78372242]
[1748552403341,15.44564537,2643.0,2642.9,11.78372242]
[1748552403542,16.99020991,2643.0,2642.9,11.78372242]
[1748552404451,17.69020991,2643.0,2642.9,11.78372242]
[1748552406273,16.99020991,2643.0,2642.9,11.78372242]
[1748552409477,17.69020991,2643.0,2642.9,11.78372242]
[1748552410174,16.99020991,2643.0,2642.9,11.78372242]
[1748552419475,17.69020991,2643.0,2642.9,11.78372242]
[1748552420313,17.69020991,2643.0,2642.9,3.78372242]
[1748552421290,17.69020991,2643.0,2642.7,11.78400877]
[1748552421491,16.14564537,2643.0,2642.9,3.78372242]
[1748552422411,16.14564537,2643.0,2642.7,11.78400877]
[1748552422412,16.14564537,2643.0,2642.7,11.41809032]
[1748552422571,16.14564537,2643.0,2642.9,3.78372242]
[1748552425481,15.44564537,2643.0,2642.9,3.78372242]
[1748552428202,11.59064537,2643.0,2642.9,3.78372242]
[1748552428413,16.60470991,2643.0,2642.9,3.78372242]
[1748552430264,10.07504537,2643.0,2642.9,3.78372242]
[1748552430415,13.92904537,2643.0,2642.9,3.78372242]
[1748552432901,10.07504537,2643.0,2642.9,3.78372242]
[1748552433099,10.07504537,2643.0,2642.9,11.78372242]
[1748552433300,13.92904537,2643.0,2642.9,11.78372242]
[1748552433506,13.92904537,2643.0,2642.9,12.76122242]
[1748552434448,9.07704537,2643.0,2642.9,14.41573122]
[1748552434747,13.92904537,2643.0,2642.9,14.41573122]
[1748552434909,10.07504537,2643.0,2642.9,14.41573122]
[1748552435100,13.92904537,2643.0,2642.9,14.41573122]
[1748552435302,13.92904537,2643.0,2642.9,12.76122242]
[1748552436930,14.47904537,2643.0,2642.9,12.76122242]
[1748552437126,14.47904537,2643.0,2642.9,11.78372242]
[1748552445660,6.31004537,2643.0,2642.9,11.78372242]
[1748552453097,2.45604537,2643.0,2642.9,11.78372242]
[1748552453390,6.30904537,2643.0,2642.9,11.78372242]
[1748552454795,2.45604537,2643.0,2642.9,11.78372242]
[1748552455090,6.30904537,2643.0,2642.9,11.78372242]
[1748552456158,0.90804537,2643.0,2642.9,12.69002242]
[1748552456495,5.75904537,2643.0,2642.9,14.34453122]
[1748552456696,1.90604537,2643.0,2642.9,14.34453122]
[1748552456906,5.75904537,2643.0,2642.9,14.34453122]
[1748552457513,4.851,2643.0,2642.9,14.34453122]
[1748552460294,4.851,2643.0,2642.9,6.34453122]
[1748552460498,0.90804537,2643.4,2643.3,4.67734985]
[1748552460659,0.90804537,2643.8,2643.7,3.78257744]
[1748552460855,5.75904537,2643.8,2643.7,3.78257744]
[1748552462096,1.90604537,2643.8,2643.7,3.78257744]
[1748552462297,0.90804537,2644.2,2644.1,3.78200521]
[1748552462506,0.19735562,2645.5,2644.5,4.73023316]
[1748552462507,0.90804537,2644.6,2644.5,4.73023316]
[1748552462806,5.75904537,2644.6,2644.5,4.73023316]
[1748552463960,1.90604537,2644.6,2644.5,4.73023316]
[1748552464197,5.75904537,2644.6,2644.5,4.73023316]
[1748552464382,6.33494991,2644.6,2644.5,4.73023316]
[1748552465460,2.48194991,2644.6,2644.5,4.73023316]
[1748552465661,5.75804537,2644.6,2644.5,4.73023316]
[1748552470006,1.90604537,2644.6,2644.5,4.73023316]
[1748552470206,5.75704537,2644.6,2644.5,4.73023316]
[1748552474586,0.90804537,2644.6,2644.5,4.73023316]
[1748552474788,0.997,2644.6,2644.5,16.13014961]
[1748552475011,4.848,2644.6,2644.5,18.12132001]
[1748552475401,0.997,2644.6,2644.5,18.12132001]
[1748552475735,4.848,2644.6,2644.5,18.12132001]
[1748552476316,0.997,2644.6,2644.5,18.12132001]
[1748552476504,4.847,2644.6,2644.5,18.12132001]
[1748552478601,0.997,2644.6,2644.5,18.12132001]
[1748552478831,4.847,2644.6,2644.5,18.12132001]
[1748552484745,0.90804537,2645.3,2645.2,3.78043248]
[1748552484915,5.75304537,2645.3,2645.2,3.78043248]
[1748552485314,6.30304537,2645.3,2645.2,3.78043248]
[1748552485507,8.68334991,2645.3,2645.2,3.78043248]
[1748552489318,0.55,2645.2,2644.9,3.78077598]
[1748552489543,0.55,2645.0,2644.9,8.0]
[1748552489760,4.89282165,2645.0,2644.2,0.241]
[1748552489913,1.5383,2644.8,2644.7,3.7811472]
[1748552490847,6.3833,2644.8,2644.7,3.7811472]
[1748552492144,1.45804537,2644.9,2644.8,3.78100423]
[1748552492444,6.30304537,2644.9,2644.8,3.78100423]
[1748552501410,2.45404537,2644.9,2644.8,3.78100423]
[1748552501612,6.30304537,2644.9,2644.8,3.78100423]
[1748552502428,7.02728991,2644.9,2644.8,3.78100423]
[1748552502646,3.17828991,2644.9,2644.8,3.78100423]
[1748552502850,7.98348991,2644.9,2644.8,3.78100423]
[1748552504245,4.13448991,2644.9,2644.8,3.78100423]
[1748552504416,6.30304537,2644.9,2644.8,3.78100423]
[1748552504978,2.45404537,2644.9,2644.8,3.78100423]
[1748552505192,6.30304537,2644.9,2644.8,11.78100423]
[1748552507665,1.90404537,2644.9,2644.8,11.78100423]
[1748552507842,1.90404537,2644.9,2644.8,12.76850423]
[1748552508046,5.75304537,2644.9,2644.8,14.42346666]
[1748552508259,1.90404537,2644.9,2644.8,14.42346666]
[1748552508459,0.996,2644.9,2644.8,14.42346666]
[1748552508643,0.996,2644.9,2644.8,5.7037744]
[1748552508858,4.845,2644.9,2644.8,6.42346666]
[1748552509374,0.996,2644.9,2644.8,5.14145455]
[1748552509528,4.845,2644.9,2644.8,5.14145455]
[1748552510788,4.845,2644.9,2644.8,13.14145455]
[1748552511333,0.996,2644.9,2644.8,13.14145455]
[1748552511538,0.996,2645.8,2645.7,11.77971803]
[1748552511735,1.9703,2646.3,2646.2,3.77900385]
[1748552511978,5.8183,2646.3,2646.2,11.77900385]
[1748552512545,5.8183,2646.3,2646.2,8.0]
[1748552512780,5.8183,2646.3,2646.2,11.77900385]
[1748552513338,6.3683,2646.3,2646.2,11.77900385]
[1748552514138,7.43592618,2646.3,2646.2,8.0]
[1748552514339,7.43592618,2646.3,2645.4,3.78003679]
[1748552514340,0.55,2646.2,2645.5,8.0]
[1748552514540,4.398,2646.1,2646.0,3.77928949]
[1748552514840,7.79791645,2646.1,2646.0,3.77928949]
[1748552515037,7.79791645,2646.1,2645.5,8.0]
[1748552515038,1.5466,2646.0,2645.9,11.77936297]
[1748552516157,0.55,2645.8,2645.1,0.241]
[1748552516446,3.94991645,2645.6,2645.5,3.78000378]
[1748552516645,3.94991645,2645.6,2645.5,11.78000378]
[1748552516646,1.42059618,2645.6,2645.5,11.78000378]
[1748552516952,5.392,2645.6,2645.5,11.78000378]
[1748552518885,0.55,2645.6,2645.5,11.78000378]
[1748552519186,5.392,2645.6,2645.5,11.78000378]
[1748552520880,0.995,2645.6,2645.5,11.78000378]
[1748552521204,4.842,2645.6,2645.5,11.78000378]
[1748552521549,0.995,2645.6,2645.5,11.78000378]
[1748552521747,4.842,2645.6,2645.5,11.78000378]
[1748552522449,1.45804537,2646.0,2645.9,11.77943232]
[1748552522658,6.54550991,2646.0,2645.9,11.77943232]
[1748552523083,2.69850991,2646.0,2645.9,11.77943232]
[1748552523315,6.54550991,2646.0,2645.9,11.77943232]
[1748552523693,6.30004537,2646.0,2645.9,11.77943232]
[1748552523850,10.69656182,2646.0,2645.9,7.53370873]
[1748552524055,2.45464537,2646.0,2645.9,7.53370873]
[1748552524356,10.69656182,2646.0,2645.9,7.53370873]
[1748552524602,12.14413328,2646.0,2645.9,7.53370873]
[1748552526183,0.55,2645.7,2645.6,11.77978811]
[1748552526497,8.79351645,2645.7,2645.6,8.0]
[1748552527057,8.79351645,2645.7,2644.8,0.01136652]
[1748552527058,0.55,2645.3,2644.8,0.01136652]
[1748552527258,1.45804537,2645.5,2644.9,3.78073684]
[1748552527259,4.94651645,2645.0,2644.9,3.78073684]
[1748552527504,11.587318,2645.0,2644.9,3.78073684]
[1748552527692,8.18740155,2645.0,2644.9,3.78073684]
[1748552527889,8.18740155,2645.0,2644.9,11.78073684]
[1748552532178,2.79380155,2645.0,2644.9,11.78073684]
[1748552532379,6.64080155,2645.0,2644.9,11.78073684]
[1748552532683,7.19080155,2645.0,2644.9,11.78073684]
[1748552535483,7.19080155,2645.0,2644.9,4.83929552]
[1748552535683,7.19080155,2645.0,2644.9,3.78079404]
[1748552540016,7.19180155,2645.0,2644.9,3.78079404]
[1748552542223,8.18680155,2645.0,2644.9,3.78079404]
[1748552542941,8.18680155,2645.0,2644.8,3.79232677]
[1748552542942,0.55,2644.9,2644.8,3.79225528]
[1748552543147,3.24822553,2644.9,2644.8,11.79225528]
[1748552546950,2.27672553,2644.9,2644.8,11.79225528]
[1748552549762,6.12472553,2644.9,2644.8,11.79225528]
[1748552551223,5.30604537,2644.9,2644.8,11.79225528]
[1748552553455,5.30504537,2644.9,2644.8,11.79225528]
[1748552553846,1.90304537,2644.9,2644.8,11.79225528]
[1748552554045,5.75004537,2644.9,2644.8,11.79225528]